fUSD/lending_fUSD_20260512
["ID","MTS","AMOUNT","RATE_DAILY","PERIOD"]
[422090716,1778565498000,-291.5,0.00024324,2]
[422090718,1778565498000,160.87,0.0001875,2]
[422090717,1778565498000,-5478.92523916,0.000244,2]
[422090711,1778565498000,-500.0,0.00024052,2]
[422090719,1778565500000,248.71831106,0.00013354,2]
[422090722,1778565550000,150.0,0.0001376,2]
[422090721,1778565550000,150.0,0.00013626,2]
[422090720,1778565550000,150.0,0.00013493,2]
[422090723,1778565550000,150.0,0.00013893,2]
[422090724,1778565551000,250.0,0.00014965,2]
[422090725,1778565614000,71309.95859445,0.00027,120]
[422090727,1778565695000,998976.76,0.00015,2]
[422090726,1778565695000,387704.807579,0.00015,2]
[422090728,1778565752000,3069.02687059,8e-05,2]
[422090729,1778565752000,6930.97312941,8e-05,2]
[422090731,1778565829000,205.0,9.8e-05,2]
[422090732,1778565834000,262.46945587,0.000101,2]
[422090733,1778565861000,180.82823416,0.0001,30]
[422090734,1778565866000,444.39,0.00025065,120]
[422090735,1778565905000,-305.66535827,0.000114,2]
[422090740,1778566076000,271.10680107,0.000107,2]
[422090739,1778566076000,-201.41490132,0.0001254,2]
[422090738,1778566076000,-201.41490132,0.0001254,2]
[422090754,1778566077000,10000.0,0.000107,2]
[422090753,1778566077000,10000.0,0.000107,2]
[422090751,1778566077000,10000.0,0.000107,2]
[422090750,1778566077000,10000.0,0.000107,2]
[422090749,1778566077000,10000.0,0.000107,2]
[422090747,1778566077000,10000.0,0.000107,2]
[422090743,1778566077000,10000.0,0.000107,2]
[422090745,1778566077000,10000.0,0.000107,2]
[422090741,1778566077000,2330.45061365,0.000107,2]
[422090752,1778566077000,10000.0,0.000107,2]
[422090744,1778566077000,10000.0,0.000107,2]
[422090742,1778566077000,10000.0,0.000107,2]
[422090746,1778566077000,10000.0,0.000107,2]
[422090755,1778566077000,10000.0,0.000107,2]
[422090748,1778566077000,10000.0,0.000107,2]
[422090758,1778566077000,10000.0,0.000107,2]
[422090769,1778566077000,10000.0,0.000107,2]
[422090767,1778566077000,10000.0,0.000107,2]
[422090768,1778566077000,10000.0,0.000107,2]
[422090766,1778566077000,10000.0,0.000107,2]
[422090762,1778566077000,10000.0,0.000107,2]
[422090757,1778566077000,10000.0,0.000107,2]
[422090764,1778566077000,10000.0,0.000107,2]
[422090765,1778566077000,10000.0,0.000107,2]
[422090763,1778566077000,10000.0,0.000107,2]
[422090761,1778566077000,10000.0,0.000107,2]
[422090760,1778566077000,10000.0,0.000107,2]
[422090759,1778566077000,10000.0,0.000107,2]
[422090756,1778566077000,10000.0,0.000107,2]
[422090770,1778566077000,-201.41490132,0.00010204,2]
[422090771,1778566078000,-1033.44563937,0.00010204,2]
[422090773,1778566078000,-201.41490132,0.000107,2]
[422090772,1778566078000,-170308.65966063,0.000107,2]
[422090775,1778566078000,-132811.41566337,0.000107,2]
[422090776,1778566078000,-48.58509868,0.0001254,2]
[422090777,1778566078000,-150.0,0.00013488,2]
[422090774,1778566078000,-10000.0,0.000107,2]
[422090783,1778566079000,-143.81619993,0.00013488,2]
[422090784,1778566079000,-57.59870139,0.00013488,2]
[422090782,1778566079000,-6.18380007,0.00013488,2]
[422090781,1778566079000,-150.0,0.00013488,2]
[422090780,1778566079000,-45.23110125,0.00013488,2]
[422090779,1778566079000,-201.41490132,0.00013488,2]
[422090778,1778566079000,-2.82980264,0.00013488,2]
[422090786,1778566080000,-109.01360271,0.00013488,2]
[422090785,1778566080000,-92.40129861,0.00013488,2]
[422090790,1778566080000,-1.41490132,0.00013488,2]
[422090788,1778566080000,-62.30227217,0.00013488,2]
[422090789,1778566080000,-200.0,0.00013393,2]
[422090787,1778566080000,-139.11262915,0.00013488,2]
[422090793,1778566081000,232.96010364,0.00010699,2]
[422090791,1778566081000,394.96860822,0.00010699,2]
[422090792,1778566081000,295.73901947,0.00010699,2]
[422090794,1778566081000,415.48757634,0.00010699,2]
[422090799,1778566081000,-16.54697613,0.00013488,2]
[422090795,1778566081000,-86.28282651,0.00013488,2]
[422090797,1778566081000,-34.86792519,0.00013488,2]
[422090798,1778566081000,-150.0,0.00013488,2]
[422090796,1778566081000,-115.13207481,0.00013488,2]
[422090801,1778566082000,-67.96187745,0.00013522,2]
[422090800,1778566082000,-133.45302387,0.00013488,2]
[422090804,1778566147000,-150.0,0.00013556,2]
[422090803,1778566147000,-82.03812255,0.00013522,2]
[422090805,1778566147000,-150.0,0.0001359,2]
[422090807,1778566147000,-150.0,0.00013624,2]
[422090810,1778566147000,-150.0,0.00013692,2]
[422090808,1778566147000,-150.0,0.00013654,2]
[422090809,1778566147000,-150.0,0.00013658,2]
[422090811,1778566147000,-150.0,0.00013726,2]
[422090812,1778566147000,-150.0,0.00013737,2]
[422090815,1778566147000,-150.0,0.00013794,2]
[422090806,1778566147000,-150.0,0.00013613,2]
[422090813,1778566147000,-150.0,0.0001376,2]
[422090817,1778566147000,-150.0,0.00013828,2]
[422090816,1778566147000,-150.0,0.00013821,2]
[422090819,1778566147000,-150.0,0.00013862,2]
[422090818,1778566147000,-150.0,0.00013862,2]
[422090820,1778566147000,-150.0,0.00013896,2]
[422090823,1778566147000,-150.0,0.00013987,2]
[422090822,1778566147000,-150.0,0.00013965,2]
[422090824,1778566147000,-150.0,0.00013987,2]
[422090821,1778566147000,-150.0,0.0001393,2]
[422090825,1778566147000,-150.0,0.00013999,2]
[422090814,1778566147000,-154.3164136,0.00013793,2]
[422090826,1778566160000,266.928765,0.00023912,120]
[422090829,1778566161000,-150.0,0.00014101,2]
[422090832,1778566161000,-300.0,0.00014135,2]
[422090827,1778566161000,-150.0,0.00014033,2]
[422090831,1778566161000,-150.0,0.00014135,2]
[422090828,1778566161000,-150.0,0.00014067,2]
[422090833,1778566161000,-179.778284,0.00014135,2]
[422090830,1778566161000,-150.0,0.00014112,2]
[422090834,1778566167000,1000.0,0.00013755,2]
[422090846,1778566175000,-150.0,0.00014339,2]
[422090848,1778566175000,-150.0,0.00014373,2]
[422090847,1778566175000,-150.0,0.00014362,2]
[422090845,1778566175000,-150.0,0.0001432,2]
[422090844,1778566175000,-150.0,0.00014305,2]
[422090843,1778566175000,-150.0,0.00014271,2]
[422090841,1778566175000,-150.0,0.00014237,2]
[422090840,1778566175000,-150.0,0.00014237,2]
[422090839,1778566175000,-150.0,0.00014203,2]
[422090837,1778566175000,-150.0,0.00014154,2]
[422090838,1778566175000,-150.0,0.00014169,2]
[422090836,1778566175000,-150.0,0.00014135,2]
[422090835,1778566175000,-49.221716,0.00014135,2]
[422090849,1778566175000,-150.0,0.00014407,2]
[422090842,1778566175000,-150.0,0.00014237,2]
[422090851,1778566175000,-150.0,0.00014475,2]
[422090850,1778566175000,-150.0,0.00014441,2]
[422090852,1778566175000,-150.0,0.00014487,2]
[422090867,1778566175000,-150.0,0.00014714,2]
[422090866,1778566175000,-600.0,0.000147,5]
[422090865,1778566175000,-400.0,0.000147,5]
[422090864,1778566175000,-150.0,0.0001468,2]
[422090863,1778566175000,-150.0,0.00014653,2]
[422090862,1778566175000,-150.0,0.00014646,2]
[422090859,1778566175000,-150.0,0.00014612,2]
[422090868,1778566175000,-150.0,0.00014737,2]
[422090860,1778566175000,-150.0,0.00014612,2]
[422090858,1778566175000,-300.0,0.000146,5]
[422090857,1778566175000,-200.0,0.000146,5]
[422090855,1778566175000,-150.0,0.00014544,2]
[422090856,1778566175000,-150.0,0.00014578,2]
[422090853,1778566175000,-150.0,0.00014487,2]
[422090854,1778566175000,-150.0,0.00014509,2]
[422090861,1778566175000,-500.0,0.00014612,2]
[422090869,1778566176000,-150.0,0.00014748,2]
[422090870,1778566176000,-150.0,0.00014782,2]
[422090872,1778566176000,-900.0,0.000148,5]
[422090871,1778566176000,-600.0,0.000148,5]
[422090874,1778566176000,-150.0,0.0001482,2]
[422090876,1778566176000,-150.0,0.00014861,2]
[422090878,1778566176000,-150.0,0.00014884,2]
[422090873,1778566176000,-150.0,0.00014816,2]
[422090877,1778566176000,-300.0,0.00014874,2]
[422090880,1778566176000,-309.43577988,0.000149,2]
[422090879,1778566176000,-500.0,0.00014886,2]
[422090881,1778566176000,-800.0,0.000149,5]
[422090875,1778566176000,-150.0,0.0001485,2]
[422090882,1778566176000,-17541.06382392,0.000149,2]
[422090883,1778566176000,-1200.0,0.000149,5]
[422090884,1778566176000,-4163.92414405,0.000149,2]
[422090885,1778566206000,177.0,0.00024271,120]
[422090886,1778566207000,177.0,0.00025484,120]
[422090887,1778566209000,177.0,0.00026758,120]
[422090888,1778566213000,-78407.8847811,0.00011893,2]
[422090912,1778566231000,-1148.76047939,0.0001499,2]
[422090909,1778566231000,-300.0,0.00014989,2]
[422090908,1778566231000,-300.0,0.00014989,2]
[422090911,1778566231000,-63.40765297,0.0001499,2]
[422090913,1778566231000,-1249.39039257,0.0001499,2]
[422090919,1778566231000,-500.0,0.00014999,2]
[422090915,1778566231000,-20089.70968331,0.0001499,2]
[422090917,1778566231000,-200.54223977,0.0001499,2]
[422090918,1778566231000,-1001.91634798,0.00014999,2]
[422090920,1778566231000,-1000.0,0.00014999,2]
[422090910,1778566231000,-300.0,0.00014989,2]
[422090914,1778566231000,-500.0,0.0001499,2]
[422090907,1778566231000,-206.96787035,0.00014989,2]
[422090893,1778566231000,-301.00464389,0.00013082,2]
[422090906,1778566231000,-993.03212965,0.00014989,2]
[422090904,1778566231000,-158.69225616,0.00014986,2]
[422090903,1778566231000,-158.84105338,0.00014986,2]
[422090902,1778566231000,-150.0,0.00014986,2]
[422090900,1778566231000,-172.0,0.00014959,2]
[422090901,1778566231000,-150.0,0.00014986,2]
[422090898,1778566231000,-154.31641359,0.00014925,2]
[422090899,1778566231000,-150.0,0.00014952,2]
[422090895,1778566231000,-183.6,0.00013465,2]
[422090897,1778566231000,-150.0,0.00014918,2]
[422090896,1778566231000,-1656.43498623,0.000149,2]
[422090894,1778566231000,-250.0,0.00013082,2]
[422090922,1778566231000,-500.0,0.00014999,2]
[422090905,1778566231000,-150.0,0.00014986,2]
[422090924,1778566231000,-200.70178319,0.00014999,2]
[422090916,1778566231000,-200.54223977,0.0001499,2]
[422090923,1778566231000,-500.0,0.00014999,2]
[422090921,1778566231000,-1094.38604953,0.00014999,5]
[422090971,1778566231000,-822.20643775,0.00014999,2]
[422090969,1778566231000,-822.20643775,0.00014999,2]
[422090970,1778566231000,-822.20643775,0.00014999,2]
[422090960,1778566231000,-822.20643775,0.00014999,2]
[422090967,1778566231000,-822.20643775,0.00014999,2]
[422090958,1778566231000,-822.20643775,0.00014999,2]
[422090968,1778566231000,-822.20643775,0.00014999,2]
[422090954,1778566231000,-822.20643775,0.00014999,2]
[422090950,1778566231000,-822.20643775,0.00014999,2]
[422090952,1778566231000,-822.20643775,0.00014999,2]
[422090966,1778566231000,-822.20643775,0.00014999,2]
[422090964,1778566231000,-822.20643775,0.00014999,2]
[422090962,1778566231000,-822.20643775,0.00014999,2]
[422090948,1778566231000,-822.20643775,0.00014999,2]
[422090956,1778566231000,-822.20643775,0.00014999,2]
[422090937,1778566231000,-822.20643775,0.00014999,2]
[422090934,1778566231000,-822.20643775,0.00014999,2]
[422090933,1778566231000,-822.20643775,0.00014999,2]
[422090935,1778566231000,-822.20643775,0.00014999,2]
[422090930,1778566231000,-822.20643775,0.00014999,2]
[422090932,1778566231000,-822.20643775,0.00014999,2]
[422090928,1778566231000,-822.20643775,0.00014999,2]
[422090945,1778566231000,-822.20643775,0.00014999,2]
[422090943,1778566231000,-822.20643775,0.00014999,2]
[422090941,1778566231000,-822.20643775,0.00014999,2]
[422090939,1778566231000,-822.20643775,0.00014999,2]
[422090925,1778566231000,-500.0,0.00014999,2]
[422090926,1778566231000,-500.0,0.00014999,2]
[422090946,1778566231000,-822.20643775,0.00014999,2]
[422090997,1778566232000,-812.17952997,0.00014999,2]
[422090996,1778566232000,-812.17952997,0.00014999,2]
[422090989,1778566232000,-822.20643775,0.00014999,2]
[422090991,1778566232000,-822.20643775,0.00014999,2]
[422090999,1778566232000,-812.17952997,0.00014999,2]
[422090995,1778566232000,-223.78555604,0.00014999,2]
[422090988,1778566232000,-822.20643775,0.00014999,2]
[422091004,1778566232000,-812.17952997,0.00014999,2]
[422091006,1778566232000,-812.17952997,0.00014999,2]
[422091001,1778566232000,-812.17952997,0.00014999,2]
[422091002,1778566232000,-812.17952997,0.00014999,2]
[422091000,1778566232000,-812.17952997,0.00014999,2]
[422091005,1778566232000,-812.17952997,0.00014999,2]
[422091007,1778566232000,-812.17952997,0.00014999,2]
[422091008,1778566232000,-812.17952997,0.00014999,2]
[422090993,1778566232000,-822.20643775,0.00014999,2]
[422090998,1778566232000,-812.17952997,0.00014999,2]
[422090994,1778566232000,-822.20643775,0.00014999,2]
[422090978,1778566232000,-822.20643775,0.00014999,2]
[422090990,1778566232000,-822.20643775,0.00014999,2]
[422091009,1778566232000,-812.17952997,0.00014999,2]
[422090972,1778566232000,-822.20643775,0.00014999,2]
[422090982,1778566232000,-822.20643775,0.00014999,2]
[422090977,1778566232000,-822.20643775,0.00014999,2]
[422090976,1778566232000,-822.20643775,0.00014999,2]
[422090973,1778566232000,-822.20643775,0.00014999,2]
[422090975,1778566232000,-822.20643775,0.00014999,2]
[422090986,1778566232000,-822.20643775,0.00014999,2]
[422090974,1778566232000,-822.20643775,0.00014999,2]
[422090979,1778566232000,-822.20643775,0.00014999,2]
[422090981,1778566232000,-822.20643775,0.00014999,2]
[422090983,1778566232000,-822.20643775,0.00014999,2]
[422090984,1778566232000,-822.20643775,0.00014999,2]
[422090985,1778566232000,-822.20643775,0.00014999,2]
[422090992,1778566232000,-822.20643775,0.00014999,2]
[422090987,1778566232000,-822.20643775,0.00014999,2]
[422090980,1778566232000,-822.20643775,0.00014999,2]
[422091010,1778566232000,-812.17952997,0.00014999,2]
[422091003,1778566232000,-812.17952997,0.00014999,2]
[422091015,1778566232000,-812.17952997,0.00014999,2]
[422091034,1778566232000,-500.0,0.00014999,2]
[422091031,1778566232000,-812.17952997,0.00014999,2]
[422091029,1778566232000,-812.17952997,0.00014999,2]
[422091037,1778566232000,-216.2991487,0.00014999,2]
[422091036,1778566232000,-286.26625711,0.00014999,2]
[422091033,1778566232000,-500.0,0.00014999,2]
[422091032,1778566232000,-812.17952997,0.00014999,2]
[422091038,1778566232000,-539.77444412,0.00014999,2]
[422091039,1778566232000,-849.78043411,0.00014999,2]
[422091042,1778566232000,-849.78043411,0.00014999,2]
[422091047,1778566232000,-97102.48994716,0.00015,2]
[422091043,1778566232000,-849.78043411,0.00014999,2]
[422091041,1778566232000,-849.78043411,0.00014999,2]
[422091044,1778566232000,-849.78043409,0.00014999,2]
[422091045,1778566232000,-508.39579967,0.00014999,2]
[422091048,1778566232000,-70320.31256726,0.00015,2]
[422091040,1778566232000,-849.78043411,0.00014999,2]
[422091030,1778566232000,-812.17952997,0.00014999,2]
[422091046,1778566232000,-223.7742515,0.00014999,2]
[422091028,1778566232000,-812.17952997,0.00014999,2]
[422091035,1778566232000,-500.0,0.00014999,2]
[422091013,1778566232000,-812.17952997,0.00014999,2]
[422091014,1778566232000,-812.17952997,0.00014999,2]
[422091012,1778566232000,-812.17952997,0.00014999,2]
[422091017,1778566232000,-812.17952997,0.00014999,2]
[422091016,1778566232000,-812.17952997,0.00014999,2]
[422091019,1778566232000,-812.17952997,0.00014999,2]
[422091018,1778566232000,-812.17952997,0.00014999,2]
[422091011,1778566232000,-812.17952997,0.00014999,2]
[422091049,1778566232000,-58069.69248645,0.00015,2]
[422091026,1778566232000,-812.17952997,0.00014999,2]
[422091020,1778566232000,-812.17952997,0.00014999,2]
[422091021,1778566232000,-812.17952997,0.00014999,2]
[422091025,1778566232000,-812.17952997,0.00014999,2]
[422091024,1778566232000,-812.17952997,0.00014999,2]
[422091027,1778566232000,-812.17952997,0.00014999,2]
[422091023,1778566232000,-812.17952997,0.00014999,2]
[422091022,1778566232000,-812.17952997,0.00014999,2]
[422091051,1778566233000,-673.50309465,0.00015,2]
[422091053,1778566233000,-829.43912188,0.00015,2]
[422091052,1778566233000,-5608.65899614,0.00015,2]
[422091050,1778566233000,-1337.70986208,0.00015,2]
[422091054,1778566237000,-5344.8976806,0.00015,2]
[422091055,1778566237000,-2592.62594964,0.00015,2]
[422091056,1778566237000,-2445324.75299237,0.00015,2]
[422091058,1778566237000,-36659.10998148,0.00015,2]
[422091059,1778566237000,-49182.04045867,0.00015,2]
[422091057,1778566237000,-702.85,0.00015,2]
[422091062,1778566237000,-255.4434695,0.00015,2]
[422091060,1778566237000,-598.26313241,0.00015,2]
[422091065,1778566237000,-649.50371857,0.00015,2]
[422091061,1778566237000,-1049.53799999,0.00015,2]
[422091063,1778566237000,-1258.12588853,0.00015,2]
[422091064,1778566237000,-579.78867862,0.00015,2]
[422091085,1778566240000,-17541.06382389,0.00018033,2]
[422091084,1778566240000,-587.0,0.00017954,2]
[422091083,1778566240000,-1000.0,0.00017621,2]
[422091081,1778566240000,-1000.0,0.00017621,2]
[422091080,1778566240000,-500.0,0.00017073,2]
[422091082,1778566240000,-1000.0,0.00017621,2]
[422091078,1778566240000,-500.0,0.00017073,2]
[422091079,1778566240000,-500.0,0.00017073,2]
[422091077,1778566240000,-78407.8847811,0.00017047,2]
[422091074,1778566240000,-433.0,0.00016453,2]
[422091072,1778566240000,-420.0,0.00016405,2]
[422091073,1778566240000,-170.0,0.00016438,2]
[422091071,1778566240000,-17541.06382389,0.00015944,2]
[422091070,1778566240000,-255.0,0.00015251,2]
[422091068,1778566240000,-854033.93773757,0.00015,2]
[422091069,1778566240000,-198.9478662,0.00015151,2]
[422091067,1778566240000,-509.32134718,0.00015,2]
[422091075,1778566240000,-1680.0,0.00016488,2]
[422091076,1778566240000,-17541.06382389,0.00016989,2]
[422091088,1778566240000,-210.98529741,0.00018168,2]
[422091087,1778566240000,-1049.0,0.00018137,2]
[422091086,1778566240000,-600.0,0.0001807,2]
[422091104,1778566240000,-200.0,0.0002,2]
[422091106,1778566240000,-234.0,0.0002,2]
[422091102,1778566240000,-4384.0937444,0.00019651,2]
[422091103,1778566240000,-993.59354438,0.00019812,2]
[422091100,1778566240000,-823.0,0.0001965,2]
[422091101,1778566240000,-152.0,0.00019651,2]
[422091099,1778566240000,-309.43577986,0.0001927,2]
[422091097,1778566240000,-17541.06382389,0.00019078,2]
[422091105,1778566240000,-154.0,0.0002,2]
[422091094,1778566240000,-2000.0,0.00018716,2]
[422091092,1778566240000,-170.0,0.0001841,2]
[422091093,1778566240000,-1203.55581159,0.00018716,2]
[422091095,1778566240000,-635.29,0.00018874,2]
[422091091,1778566240000,-5820.35913023,0.00018344,2]
[422091090,1778566240000,-1500.0,0.00018168,2]
[422091089,1778566240000,-1500.0,0.00018168,2]
[422091098,1778566240000,-2500.0,0.00019264,2]
[422091096,1778566240000,-154.29,0.000189,2]
[422091140,1778566241000,-617.96406145,0.00021873,2]
[422091144,1778566241000,-234.0,0.00022,2]
[422091142,1778566241000,-928.89097521,0.00021873,2]
[422091156,1778566241000,-350.0,0.00022421,2]
[422091136,1778566241000,-5820.35913023,0.00021787,2]
[422091137,1778566241000,-250.0,0.00021873,2]
[422091135,1778566241000,-2000.0,0.00021624,2]
[422091138,1778566241000,-610.7460418,0.00021873,2]
[422091141,1778566241000,-1000.0,0.00021873,2]
[422091139,1778566241000,-1000.0,0.00021873,2]
[422091143,1778566241000,-200.0,0.00022,2]
[422091154,1778566241000,-170.0,0.00022353,2]
[422091146,1778566241000,-570.0,0.00022,2]
[422091148,1778566241000,-151.0,0.00022,2]
[422091147,1778566241000,-165.0,0.00022,2]
[422091149,1778566241000,-550.0,0.00022,2]
[422091150,1778566241000,-214.0,0.00022,2]
[422091151,1778566241000,-78407.8847811,0.000222,2]
[422091155,1778566241000,-163.98,0.00022404,2]
[422091133,1778566241000,-500.0,0.00021325,2]
[422091153,1778566241000,-444.39,0.0002228,2]
[422091152,1778566241000,-17541.06382389,0.00022211,2]
[422091157,1778566241000,-1500.0,0.00022421,2]
[422091145,1778566241000,-511.0,0.00022,2]
[422091134,1778566241000,-1152.0,0.00021506,2]
[422091122,1778566241000,-152.0,0.00021,2]
[422091130,1778566241000,-500.0,0.00021325,2]
[422091107,1778566241000,-511.0,0.0002,2]
[422091109,1778566241000,-570.0,0.0002,2]
[422091108,1778566241000,-300.00000099,0.0002,2]
[422091111,1778566241000,-151.0,0.0002,2]
[422091110,1778566241000,-152.0,0.0002,2]
[422091112,1778566241000,-550.0,0.0002,2]
[422091120,1778566241000,-511.0,0.00021,2]
[422091119,1778566241000,-234.0,0.00021,2]
[422091118,1778566241000,-164.74173103,0.00021,2]
[422091114,1778566241000,-17541.06382389,0.00020122,2]
[422091115,1778566241000,-12191.05,0.00020145,2]
[422091116,1778566241000,-170.0,0.00020381,2]
[422091121,1778566241000,-570.0,0.00021,2]
[422091117,1778566241000,-200.0,0.00021,2]
[422091113,1778566241000,-214.0,0.0002,2]
[422091123,1778566241000,-151.0,0.00021,2]
[422091124,1778566241000,-550.0,0.00021,2]
[422091125,1778566241000,-504.16185047,0.00021,2]
[422091126,1778566241000,-214.0,0.00021,2]
[422091127,1778566241000,-17541.06382389,0.00021167,2]
[422091128,1778566241000,-150.0,0.00021325,2]
[422091131,1778566241000,-500.0,0.00021325,2]
[422091129,1778566241000,-500.0,0.00021325,2]
[422091132,1778566241000,-500.0,0.00021325,2]
[422091158,1778566241000,-1505.44740162,0.00022421,2]
[422091177,1778566241000,-1852.42,0.00023746,2]
[422091163,1778566241000,-450.0,0.00022969,2]
[422091189,1778566241000,-511.0,0.00024,2]
[422091192,1778566241000,-550.0,0.00024,2]
[422091190,1778566241000,-570.0,0.00024,2]
[422091191,1778566241000,-151.0,0.00024,2]
[422091194,1778566241000,-4520.6017521,0.0002411,2]
[422091196,1778566241000,-17541.06382389,0.000243,2]
[422091195,1778566241000,-150.0,0.00024271,30]
[422091197,1778566241000,-170.0,0.00024324,2]
[422091205,1778566241000,-676.20849593,0.00024399,2]
[422091200,1778566241000,-501.92255243,0.00024373,2]
[422091201,1778566241000,-500.0,0.00024373,2]
[422091188,1778566241000,-234.0,0.00024,2]
[422091202,1778566241000,-200.54223977,0.0002439,2]
[422091199,1778566241000,-226.65746035,0.00024334,2]
[422091203,1778566241000,-514.0,0.00024397,2]
[422091204,1778566241000,-308.68353839,0.00024399,2]
[422091206,1778566241000,-500.0,0.00024399,2]
[422091207,1778566241000,-500.0,0.00024399,2]
[422091208,1778566241000,-500.0,0.00024399,2]
[422091212,1778566241000,-1877760.99226755,0.000244,2]
[422091209,1778566241000,-500.0,0.00024399,2]
[422091210,1778566241000,-500.0,0.00024399,2]
[422091211,1778566241000,-497.95270019,0.00024399,2]
[422091162,1778566241000,-1413.5,0.00022618,2]
[422091198,1778566241000,-2000.0,0.00024327,2]
[422091187,1778566241000,-200.0,0.00024,2]
[422091185,1778566241000,-261.912011,0.00023912,14]
[422091193,1778566241000,-214.0,0.00024,2]
[422091161,1778566241000,-152.49,0.00022535,2]
[422091159,1778566241000,-312.89,0.00022535,2]
[422091160,1778566241000,-417.54,0.00022535,2]
[422091164,1778566241000,-1501.43213113,0.00022969,2]
[422091166,1778566241000,-234.0,0.00023,2]
[422091168,1778566241000,-570.0,0.00023,2]
[422091169,1778566241000,-151.0,0.00023,2]
[422091170,1778566241000,-550.0,0.00023,2]
[422091171,1778566241000,-214.0,0.00023,2]
[422091174,1778566241000,-1430.0,0.00023538,2]
[422091175,1778566241000,-163.98,0.00023637,2]
[422091167,1778566241000,-511.0,0.00023,2]
[422091173,1778566241000,-651.05929088,0.00023517,2]
[422091172,1778566241000,-17541.06382389,0.00023256,2]
[422091184,1778566241000,-300.0,0.000239,8]
[422091186,1778566241000,-2887.65,0.00023962,2]
[422091183,1778566241000,-200.0,0.000239,8]
[422091182,1778566241000,-600.0,0.00023883,2]
[422091165,1778566241000,-200.0,0.00023,2]
[422091180,1778566241000,-1000.0,0.000238,8]
[422091179,1778566241000,-500.0,0.00023793,2]
[422091176,1778566241000,-309.43577986,0.0002364,2]
[422091178,1778566241000,-4715.14,0.00023793,2]
[422091181,1778566241000,-1500.0,0.000238,8]
[422091217,1778566242000,-1260.78629643,0.000244,2]
[422091218,1778566243000,-85007.29363077,0.000244,2]
[422091222,1778566243000,-150.0,0.00015149,2]
[422091223,1778566243000,-406.3861,0.000244,2]
[422091228,1778566245000,-1102.63943433,0.000244,2]
[422091227,1778566245000,-503.0,0.00024397,2]
[422091224,1778566245000,-547.11145433,0.00014702,2]
[422091225,1778566245000,-150.0,0.00015299,2]
[422091226,1778566245000,-150.0,0.00015449,2]
[422091239,1778566255000,419.83398401,0.000107,2]
[422091242,1778566506000,177.0,0.00023146,120]
[422091243,1778566590000,547.11145433,0.0001,2]
[422091244,1778566829000,1053.0,0.00023172,120]
[422091245,1778566831000,1053.0,0.00024331,120]
[422091246,1778566832000,1053.0,0.00025547,120]
[422091247,1778566833000,1053.0,0.00026825,120]
[422091248,1778567134000,632.0,0.00023177,120]
[422091249,1778567135000,632.0,0.00024336,120]
[422091250,1778567137000,632.0,0.00025553,120]
[422091251,1778567138000,632.0,0.00026831,120]
[422091254,1778567186000,-552.207159,0.00011498,2]
[422091253,1778567186000,-192.15780863,0.00011498,2]
[422091255,1778567186000,-935.39,0.00011498,2]
[422091257,1778567186000,-150.0,0.00011612,2]
[422091256,1778567186000,-166.97679158,0.00011512,2]
[422091260,1778567186000,-214.0,0.00011957,2]
[422091264,1778567186000,-321.03424626,0.00012648,2]
[422091263,1778567186000,-395.11399453,0.00012648,2]
[422091261,1778567186000,-151.28,0.00012,2]